Cogmind - Beta 10.2 @@@ ROGUE MODE // 2020.11.07 @ 14:19:48 // Halloween2020/ForbiddenLore Player: blelm Result: Self-destructed Performance ------------- Evolutions (1) 500 Regions Visited (2) 400 Robots Destroyed (12) 60 Value Destroyed (186) 186 Prototype IDs (0) 0 Alien Tech Used (0) 0 Bonus (0) 0 TOTAL SCORE: 1146 Bonus ------- None Cogmind --------- Core Integrity 400/400 Matter 231/300 Energy 250/250 System Corruption 0% Temperature Cool (6) Movement Treading (200) Ox2 Location -9/Materials Parts ------- > --- POWER (1) -------- Ion Engine > --- PROPULSION (2) --- Light Treads > --- UTILITY (4) ------ Large Storage Unit High-capacity Storage Unit > --- WEAPON (2) ------- Light Cannon Light Cannon > --- INVENTORY (18) --- Ion Engine Light Treads Light Treads Light Treads Small Storage Unit Small Storage Unit Large Storage Unit EM Pulse Gun EM Pulse Gun Light Cannon Light Cannon Rocket Launcher Peak State ------------ > --- POWER ------------ Ion Engine > --- PROPULSION ------- Light Treads Compact Wheel > --- UTILITY ---------- Large Storage Unit High-capacity Storage Unit > --- WEAPON ----------- EM Pulse Gun Small Laser > --- INVENTORY -------- Ion Engine Light Treads Small Storage Unit Small Storage Unit Large Storage Unit EM Pulse Gun Light Cannon Light Cannon Light Cannon Light Cannon [Rating: 8] Favorites ----------- Power Ion Engine Engine Ion Engine Propulsion Light Treads Treads Light Treads Leg Aluminum Leg Wheel Compact Wheel Utility High-capacity Storage Unit Storage High-capacity Storage Unit Weapon EM Pulse Gun Energy Gun EM Pulse Gun Ballistic Cannon Light Cannon Build | -11 -10 -9 ------- Run | Scr Mat Mat Slots Evolved 2 | . . 2 Power . | . . . Propulsion . | . . . Utility 2 | . . 2 Weapon . | . . . Parts Attached 9 | 3 6 . Power . | . . . Engine . | . . . Core . | . . . Reactor . | . . . Propulsion 2 | 2 . . Treads 1 | 1 . . Leg . | . . . Wheel 1 | 1 . . Hover . | . . . Flight . | . . . Utility 3 | 1 2 . Device . | . . . Storage 3 | 1 2 . Processor . | . . . Hackware . | . . . Protection . | . . . Artifact . | . . . Weapon 4 | . 4 . Energy Gun 2 | . 2 . Energy Cannon . | . . . Ballistic Gun . | . . . Ballistic Cannon 2 | . 2 . Launcher . | . . . Special Weapon . | . . . Impact Weapon . | . . . Slashing Weapon . | . . . Piercing Weapon . | . . . Special Melee Weapon . | . . . Unidentified Prototypes . | . . . Parts Lost 1 | . . 1 Power . | . . . Propulsion 1 | . . 1 Utility . | . . . Weapon . | . . . Highest Loss Streak 1 | . . 1 Average Slot Usage (%) 98 | . 100 77 Engine 13 | . 14 11 Treads 13 | . 14 11 Wheel 13 | . 14 11 Storage 27 | . 28 22 Energy Gun 22 | . 23 . Ballistic Cannon 5 | . 4 22 Naked Turns . | . . . Heaviest Build 59 | 16 59 59 Greatest Support 16 | 16 16 16 Greatest Overweight (x) 3 | . 3 3 Average Overweight (x) 2 | . 2 3 Largest Inventory Capacity 18 | 8 18 18 Average Capacity 16 | 6 16 18 Most Carried 15 | 6 15 12 Average Carried 8 | 2 8 11 Final Capacity 18 | 8 18 18 Final Carried 12 | 2 11 12 Class Distribution -------------------- 100% | Mutant Dominant Class ---------------- Mutant | -10/Materials Mutant | -9/Materials Resources | -11 -10 -9 ----------- Run | Scr Mat Mat Matter Collected 304 | 230 74 . Remotely . | . . . Salvage Created 429 | 100 316 13 Parts 23 | 3 16 4 Haulers Intercepted 2 | . 2 . Recyclers Shooed 2 | 1 1 . Parts Field Recycled . | . . . Retrieved Matter . | . . . Parts Self-Destructed . | . . . Prevented . | . . . Kills | -11 -10 -9 ------- Run | Scr Mat Mat Combat Hostiles Destroyed 6 | . 5 1 Guns 3 | . 3 . Cannons 3 | . 2 1 Classes Destroyed 6 | 1 5 . Hauler 2 | . 2 . Recycler 2 | 1 1 . Operator 1 | . 1 . Watcher 1 | . 1 . Swarmer 4 | . 3 1 Grunt 2 | . 2 . Best Kill Streak 2 | 1 2 1 Combat Bots Only 2 | . 2 1 Max Kills in Single Turn 1 | 1 1 1 Gunslinging . | . . . Exploded . | . . . Melee . | . . . Uniques/NPCs Destroyed . | . . . Combat | -11 -10 -9 -------- Run | Scr Mat Mat Damage Taken 330 | . 267 63 Core 50 | . 50 . Absorbed by Shields . | . . . Core Remaining (%) 90 | 100 80 . Volleys Fired 34 | 3 29 2 Largest 2 | 2 2 2 Hottest 80 | 80 80 70 Shots Fired 68 | 6 58 4 Gun 46 | 6 40 . Cannon 22 | . 18 4 Launcher . | . . . Special . | . . . Kinetic 22 | . 18 4 Thermal 11 | 3 8 . Explosive . | . . . Electromagnetic 35 | 3 32 . Robot Hit Streak 11 | 5 11 . Robot Miss Streak 4 | 1 4 3 Penetration Max . | . . . Secondary Targets . | . . . Shots Hit Robots 38 | 5 33 . Core Hits 15 | 2 12 1 Critical Hits . | . . . Critical Kills . | . . . Critical Parts Destroyed . | . . . Melee Attacks . | . . . Impact . | . . . Slashing . | . . . Piercing . | . . . Sneak Attacks . | . . . Combat Hostiles . | . . . Follow-up Attacks . | . . . Damage Inflicted 600 | 58 505 37 Guns 329 | 58 271 . Cannons 262 | . 225 37 Explosions . | . . . Melee . | . . . Ramming 9 | . 9 . Kinetic 262 | . 225 37 Thermal 44 | 33 11 . Explosive . | . . . Electromagnetic 285 | 25 260 . Impact . | . . . Slashing . | . . . Piercing . | . . . Highest Corruption 2 | . 2 . Average Corruption 2 | . 2 . Corruption Purged . | . . . Effects 3 | . 3 . Message Errors 3 | . 3 . Overload Shots . | . . . Overflow Damage . | . . . Projectiles . | . . . Explosions . | . . . Melee . | . . . Knockbacks 5 | . 5 . Impact . | . . . Kinetic 5 | . 5 . Secondary . | . . . Self-Inflicted Damage 4 | . 4 . Shots . | . . . Rammed 1 | . 1 . Targets Rammed 1 | . 1 . Kicked . | . . . Crushed . | . . . Highest Temperature 120 | 74 120 . Average Temperature 42 | 43 42 . Received Heat Transfer 54 | . 48 6 Siege Activations . | . . . Robots Corrupted . | . . . Combat Hostiles . | . . . Parts Fried 2 | . 2 . Impact Corruptions . | . . . Robots Melted . | . . . Combat Hostiles . | . . . Parts Melted . | . . . Heat Transferred 100 | 75 25 . Parts Sabotaged . | . . . Parts Stolen . | . . . Parts Stripped . | . . . Power Chain Reactions . | . . . Missiles Intercepted . | . . . Alert | -11 -10 -9 ------- Run | Scr Mat Mat Peak Influence 147 | 5 147 138 Initial 61 | . 3 61 Average 72 | 2 73 74 Maximum Alert Level . | . . . Low Security (%) 100 | 100 100 100 Level 1 . | . . . Level 2 . | . . . Level 3 . | . . . Level 4 . | . . . Level 5 . | . . . High Security . | . . . Max Security . | . . . Squads Dispatched 2 | . 1 1 Investigation . | . . . Extermination . | . . . Reinforcement 2 | . 1 1 Assault . | . . . Garrison . | . . . Intercept . | . . . Construction Impeded . | . . . Haulers Reinforced . | . . . Stealth | -11 -10 -9 --------- Run | Scr Mat Mat Distress Signals 1 | . 1 . Communications Jammed . | . . . Distress Signals . | . . . Times Spotted 24 | . 17 7 Peak Tracking Total 7 | . 6 7 Tactical Retreats 1 | . 1 . Traps | -11 -10 -9 ------- Run | Scr Mat Mat Traps Triggered 3 | . 3 . Indirectly . | . . . Trap Hack Attempts . | . . . Triggered . | . . . Disarmed . | . . . Reprogrammed . | . . . Reused . | . . . Traps Extracted . | . . . Installed . | . . . Triggered . | . . . Machines | -11 -10 -9 ---------- Run | Scr Mat Mat Machines Disabled 3 | . 2 1 Max in Single Turn 1 | . 1 1 Machines Sabotaged . | . . . Garrisons Compromised . | . . . Overloaded Fab Kills . | . . . Fab Network Shutdowns . | . . . Hacking | -11 -10 -9 --------- Run | Scr Mat Mat Machines Accessed 6 | . 4 2 Terminals 6 | . 4 2 Fabricators . | . . . Repair Stations . | . . . Recycling Units . | . . . Scanalyzers . | . . . Garrison Access . | . . . Total Hacks 17 | . 11 6 Successful 8 | . 5 3 Failed 9 | . 6 3 Catastrophic 3 | . 3 . Database Lockouts . | . . . Manual 12 | . 9 3 Terminals 17 | . 11 6 Fabricators . | . . . Repair Stations . | . . . Recycling Units . | . . . Scanalyzers . | . . . Garrison Access . | . . . Terminal Hacks 5 | . 3 2 Part Schematic 1 | . 1 . Robot Analysis 2 | . 2 . Locate Traps 1 | . . 1 Hauler Manifests 1 | . . 1 Fabricator Hacks . | . . . Repair Station Hacks . | . . . Recycling Unit Hacks . | . . . Scanalyzer . | . . . Garrison Access Hacks . | . . . Unauthorized Hacks 3 | . 2 1 Terminals 3 | . 2 1 Botnet 2 | . 1 1 Operators 1 | . 1 . Fabricators . | . . . Repair Stations . | . . . Recycling Units . | . . . Scanalyzers . | . . . Garrison Access . | . . . Data Cores Recovered . | . . . Used . | . . . Hacking Detections 5 | . 3 2 Full Trace Events 1 | . 1 . Feedback Events . | . . . Feedback Blocked . | . . . Robot Schematics Acquired . | . . . Robots Built . | . . . Matter . | . . . Time . | . . . Total Robot Build Rating . | . . . Part Schematics Acquired 1 | . 1 . Parts Built . | . . . Matter . | . . . Time . | . . . Total Part Build Rating . | . . . Parts Repaired . | . . . Time . | . . . Parts Recycled . | . . . Recycled Matter . | . . . Retrieved Matter . | . . . Retrieved Components . | . . . Parts Scanalyzed . | . . . Part Schematics Acquired . | . . . Parts Damaged . | . . . Bothacking | -11 -10 -9 ------------ Run | Scr Mat Mat Used RIF Installer . | . . . Robots Hacked . | . . . Non-combat . | . . . Combat . | . . . Robot Hacks Applied . | . . . Relay Couplers Released . | . . . Robots Rewired . | . . . Allies Hacked . | . . . Hacks Repelled . | . . . Allies | -11 -10 -9 -------- Run | Scr Mat Mat Total Allies . | . . . Largest Group . | . . . Highest-Rated Group . | . . . Highest-Rated Ally . | . . . Total Orders . | . . . Ally Attacks . | . . . Total Damage . | . . . Kills . | . . . Allies Corrupted . | . . . Allies Melted . | . . . Intel | -11 -10 -9 ------- Run | Scr Mat Mat Robot Analysis Total 2 | . 2 . Derelict Logs Recovered . | . . . Drone Launches . | . . . Drone Recoveries . | . . . Exploration | -11 -10 -9 ------------- Run | Scr Mat Mat Turns Passed 758 | 21 679 58 Spaces Moved 494 | 7 448 39 Core . | . . . Treads . | . . . Legs . | . . . Wheels 494 | 7 448 39 Hover . | . . . Flight . | . . . Fastest Speed 100 | 100 100 130 Average Speed 124 | 100 124 130 Slowest Speed 130 | 100 130 130 Overloaded Moves . | . . . Propulsion Burnouts . | . . . Robots Hopped . | . . . Cave-ins Triggered . | . . . Exploration Rate (%) 26 | 2 69 8 Regions Visited 2 Branch Regions . Pre-discovered Areas . | . . . Known Exits Taken . | . . . Unknown Exits Taken 2 | 1 1 . Scrap Searched . | . . . Spaces Dug . | . . . Terrain Destroyed . | . . . Melee . | . . . Projectile . | . . . AOE . | . . . Terrain Rammed . | . . . Walls Destroyed . | . . . Machines Disabled . | . . . Actions | -11 -10 -9 --------- Run | Scr Mat Mat Total 568 | 16 510 42 Wait 9 | . 9 . Move 492 | 6 447 39 Hop . | . . . Pick Up 13 | . 12 1 Fast Attach 1 | 1 . . Attach 2 | 2 . . Detach . | . . . Swap 6 | . 6 . Drop 10 | 4 6 . Fire 34 | 3 29 2 Melee . | . . . Ram 1 | . 1 . Kick . | . . . Crush . | . . . Escape Stasis . | . . . Rewire . | . . . Trap . | . . . Miscellaneous . | . . . Route ------- -11/Scrapyard -10/Materials (discovered 4 exits: *Mat x3 / [*Min]) -9/Materials History --------- Turn | Location | Event 14 | -11/Scrapyard | Discovered new exit (range 3) 22 | -11/Scrapyard | Entered Materials 181 | -10/Materials | Discovered new exit (range 8) 303 | -10/Materials | Discovered new exit (range 15) 318 | -10/Materials | Build established: Mutant 440 | -10/Materials | Discovered new exit (range 6) 689 | -10/Materials | Discovered new exit (range 10) 701 | -10/Materials | Entered another Materials area 701 | -9/Materials | Evolved 2 slots: Utility x2 759 | -9/Materials | Self-destructed Last Messages --------------- A-02 Transporter 1x Arm. Wheel 3x Lgt. Treads A-02 Transporter 3x Adv. Beam Cannon 2x Hvy. Ion Engine (2 escorts) A-02 Transporter 3x Hvy. Ion Engine A-02 Transporter 6x EM Pulse Gun 00751_ K-01 Serf collects debris. 00753_ O-16 Technician: "IFF HANDSHAKE FAILED. SECURING TERMINAL." 00753_ S-10 Pest destroyed. 00753_ Terminal disabled. 00754_ ALERT: Hostiles spotted, dispatching reinforcements to Terminal M003. 00755_ K-01 Serf collects debris. 00758_ Com. Wheel destroyed. 00758_ K-01 Serf cleans the Electrolysis Chamber. Map ----- +----------------------------------------------------+ | ????????????????????????????????????????????? | | ????????????????????????????????????????????? | | ????????????????????????????????????????????? | | ????????????????????????????????????????????? | | ????????????????????????????????????????????? | | ????????????????????????????????????????????? | | ????????????????????????????????????????????? | | ????????????????????????????????????????????? | | ????????????????????????????????????????????? | | ????????????????????????????????????????????? | | ????????????????????????????????????????????? | | ????????????????????????????????????????????? | | ??????????#########?????????????????????????? | | ###########"""T"""####??????????????????????? | | # # #??????????????????????? | | # # #??????????????????????? | | # # T #??????????????????????? | | # # """ #??????????????????????? | | # + """"" #??????????????????????? | | # # """"" #??????????????????????? | | # # """"" #??????????????????????? | | # # """ #??????????????????????? | | # # #??????????????????????? | | ###### ####+#####?????????????? | | ?????# ^ "" ????????????? | | ?????# @ T" g????????????? | | ?????# ^ s s*%= ????????? | | ?????# ###### ^^ sg #???????????? | | ?????# #????# ^ ^ #???????????? | | ?????#####????# """ """ """ #???????????? | | ??????????????# """ """ """ + ??????????? | | ??????????????# k""" """ """??????????????? | | ??????????????+ ??????????????? | | ??????????????# ? ?? ??????????????? | | ??????????????#???? ####????##??????????????? | | ??????????????????? ????????????????????????? | | ??????????????????? ????????????????????????? | | ???????????????????#????????????????????????? | | ????????????????????????????????????????????? | | ????????????????????????????????????????????? | | ????????????????????????????????????????????? | | ????????????????????????????????????????????? | | ????????????????????????????????????????????? | | ????????????????????????????????????????????? | | ????????????????????????????????????????????? | | | | | | | | | | | +----------------------------------------------------+ Best States ------------- Heat Dissipation 28 Energy Generation 10 Energy Capacity 250 Matter Stores 300 Matter Capacity 300 Sight Range 16 Terrain Scan Density 10 Evasion (%) 40 Recoil Reduction 1 Item Schematics ----------------- Hcp. Storage Unit | -10/Materials | Hacked Robot Schematics ------------------ None Fabricated ------------ Nothing Alien Tech Used ----------------- None Achievements -------------- None Challenges ------------ None Game ------ Seed ParticleTerrainInterrupter Manual? 0 Play Time 00:10:08 Cumulative 71.1 hours Start 2020.11.07 @ 13:36:03 End 2020.11.07 @ 14:19:48 Sessions 1 Manual Loads 0 Difficulty Rogue Special Mode Halloween2020/ForbiddenLore Game No. 52 Rogue 52 Adventurer 0 Explorer 0 Win Type - Total 1 Types 1/0/0/0/0/0/0/0/0 Lore% 32 Gallery% 42 Achievement% 35 Wizard Run 0 Options --------- ASCII 1 Keyboard 1 Movement Vi Keybinds 0 Fullscreen 1 Font 16/Terminus Map View 75x55 Tactical HUD 1 Map Filters NONE Filters NONE Steam 1 RUN: 999e0a5a-906f-4ef7-bfed-8e6f91e0360f